bitfinex/quotes_SOLUSD_20230116
["timestamp","ask_amount","ask_price","bid_price","bid_amount"]
[1673887257481,18.21389171,23.077,23.061,20.06384337]
[1673887257795,50.73389171,23.077,23.061,20.06384337]
[1673887258409,20.0,23.076,23.061,20.06384337]
[1673887258628,18.21389171,23.075,23.061,20.06384337]
[1673887258837,33.73389171,23.075,23.061,20.06384337]
[1673887259252,1.21389171,23.075,23.061,20.06384337]
[1673887260089,32.53,23.074,23.061,20.06384337]
[1673887260300,21.21389171,23.073,23.061,20.06384337]
[1673887260532,1.21389171,23.073,23.061,20.06384337]
[1673887262402,32.53,23.072,23.061,20.06384337]
[1673887262616,1.21389171,23.071,23.061,20.06384337]
[1673887262835,18.21389171,23.071,23.061,20.06384337]
[1673887265684,21.46196354,23.065,23.044,118.8294]
[1673887265874,20.0,23.063,23.044,118.8294]
[1673887266094,18.21389171,23.062,23.044,118.8294]
[1673887266501,162.54,23.061,23.039,43.25]
[1673887266710,1.21389171,23.06,23.039,43.25]
[1673887266921,18.21389171,23.06,23.039,43.25]
[1673887267131,52.55,23.059,23.039,43.25]
[1673887267362,167.0,23.058,23.039,43.25]
[1673887267562,168.21389171,23.058,23.039,43.25]
[1673887267760,32.55,23.057,23.039,43.25]
[1673887268293,21.21389171,23.058,23.039,43.25]
[1673887269343,21.21389171,23.058,23.038,200.59572642]
[1673887269344,21.21389171,23.058,23.04,60.25]
[1673887269759,1.21389171,23.058,23.04,60.25]
[1673887269975,1.21389171,23.058,23.041,32.57]
[1673887270183,1.21389171,23.058,23.042,17.0]
[1673887270617,1.21389171,23.058,23.04,60.25]
[1673887270823,1.21389171,23.058,23.04,43.25]
[1673887271230,1.21389171,23.058,23.042,20.0]
[1673887271664,1.21389171,23.058,23.043,32.57]
[1673887271893,1.21389171,23.058,23.042,32.57]
[1673887272191,1.21389171,23.058,23.039,157.0935]
[1673887272390,1.21389171,23.058,23.04,92.82]
[1673887272829,1.21389171,23.058,23.04,43.25]
[1673887273255,1.21389171,23.058,23.041,17.0]
[1673887273466,1.21389171,23.058,23.04,60.25]
[1673887273467,18.21389171,23.058,23.04,60.25]
[1673887273685,1.21389171,23.058,23.04,60.25]
[1673887273896,18.21389171,23.058,23.04,43.25]
[1673887274109,1.21389171,23.058,23.04,43.25]
[1673887274515,1.21389171,23.058,23.039,43.25]
[1673887274732,1.21389171,23.058,23.039,72.92]
[1673887275243,1.21389171,23.058,23.04,60.25]
[1673887275660,1.21389171,23.058,23.041,28.76]
[1673887275898,1.21389171,23.058,23.042,17.0]
[1673887276088,21.46196354,23.057,23.042,17.0]
[1673887276297,1.21389171,23.056,23.042,17.0]
[1673887276526,1.21389171,23.056,23.043,28.09]
[1673887276711,22.67585525,23.056,23.044,17.0]
[1673887276927,22.67585525,23.056,23.042,17.0]
[1673887277141,22.67585525,23.056,23.041,17.0]
[1673887277353,1.21389171,23.056,23.041,45.77]
[1673887277989,1.21389171,23.056,23.042,20.0]
[1673887278194,1.21389171,23.056,23.043,17.0]
[1673887278406,1.21389171,23.056,23.043,48.49]
[1673887279669,111.7842,23.072,23.044,20.0]
[1673887279864,111.7842,23.072,23.045,17.0]
[1673887280075,20.0,23.073,23.046,20.0]
[1673887280285,20.0,23.073,23.047,17.0]
[1673887280504,20.0,23.073,23.048,20.0]
[1673887280714,20.0,23.073,23.049,242.7645]
[1673887281044,20.0,23.073,23.049,275.3245]
[1673887281771,20.0,23.073,23.05,25.61067973]
[1673887281989,20.0,23.073,23.051,17.0]
[1673887282171,20.0,23.073,23.051,49.56]
[1673887282712,20.0,23.073,23.052,20.0]
[1673887282915,130.0,23.1,23.053,23.28805033]
[1673887283247,32.51,23.087,23.054,29.55313955]
[1673887283441,32.51,23.087,23.055,23.21221792]
[1673887283645,130.0,23.097,23.056,7.65537358]
[1673887283872,130.0,23.097,23.057,17.0]
[1673887284081,117.0167,23.084,23.057,49.55]
[1673887284310,117.0167,23.084,23.054,5.00497]
[1673887284311,17.0,23.082,23.056,32.55]
[1673887284504,17.0,23.082,23.055,32.55]
[1673887284713,20.0,23.081,23.053,32.56]
[1673887285760,20.0,23.081,23.055,20.0]
[1673887285986,20.0,23.081,23.056,17.0]
[1673887286184,20.0,23.081,23.057,20.0]
[1673887286400,20.0,23.081,23.058,17.0]
[1673887286609,20.0,23.081,23.058,162.9772]
[1673887287670,20.0,23.081,23.058,145.9772]
[1673887287987,20.0,23.079,23.058,113.4272]
[1673887288404,17.0,23.078,23.058,113.4272]
[1673887288807,20.0,23.077,23.058,113.4272]
[1673887290175,20.0,23.079,23.059,32.55]
[1673887290594,20.0,23.081,23.06,17.0]
[1673887290813,115.8759,23.088,23.06,17.0]
[1673887291035,115.8759,23.088,23.062,6.20111389]
[1673887291222,115.8759,23.088,23.063,17.0]
[1673887291434,115.8759,23.088,23.064,20.0]
[1673887291664,115.8759,23.088,23.065,17.0]
[1673887291872,115.8759,23.088,23.066,20.0]
[1673887292195,115.8759,23.088,23.067,17.0]
[1673887292399,115.8759,23.088,23.067,49.54]
[1673887292588,115.8759,23.088,23.067,17.0]
[1673887292795,115.8759,23.088,23.052,6.28051488]
[1673887292796,17.0,23.087,23.066,17.0]
[1673887293019,20.0,23.086,23.065,17.0]
[1673887293234,20.0,23.086,23.064,17.0]
[1673887293565,20.0,23.086,23.065,15.55147774]
[1673887293751,20.0,23.086,23.065,48.09147774]
[1673887293960,20.0,23.086,23.066,17.0]
[1673887294292,20.0,23.09,23.066,32.55147774]
[1673887294504,20.0,23.09,23.067,68.09147774]
[1673887294818,20.0,23.09,23.068,17.0]
[1673887295018,20.0,23.09,23.068,141.92097774]
[1673887295218,20.0,23.09,23.069,32.53]
[1673887295429,20.0,23.09,23.07,17.0]
[1673887295954,20.0,23.09,23.071,32.53]
[1673887296163,20.0,23.09,23.072,17.0]
[1673887296801,20.0,23.09,23.07,49.53]
[1673887298894,32.48,23.106,23.071,20.62196084]
[1673887299105,32.47,23.113,23.072,23.42342067]
[1673887299333,152.4289,23.113,23.073,11.68694394]
[1673887299524,152.4289,23.113,23.074,22.00063]
[1673887299735,152.4289,23.113,23.075,7.52570661]
[1673887299947,152.4289,23.113,23.076,17.0]
[1673887300258,20.0,23.112,23.077,20.0]
[1673887300579,20.0,23.111,23.078,32.55147774]
[1673887300792,20.0,23.11,23.079,20.0]
[1673887301013,20.0,23.11,23.08,22.07972099]
[1673887301210,20.0,23.11,23.082,6.17814281]
[1673887301416,20.0,23.11,23.083,17.0]
[1673887301633,20.0,23.11,23.083,65.06147774]
[1673887301859,20.0,23.11,23.084,4.00284361]
[1673887302379,20.0,23.11,23.085,48.06147774]
[1673887302575,20.0,23.11,23.086,23.47852832]
[1673887302785,20.0,23.11,23.086,71.54000606]
[1673887302996,20.0,23.11,23.087,15.55147774]
[1673887303200,20.0,23.11,23.088,17.0]
[1673887303421,20.0,23.11,23.088,134.7273]
[1673887304259,20.0,23.11,23.086,15.55147774]
[1673887304470,52.48,23.109,23.079,119.9453]
[1673887304676,20.0,23.108,23.079,119.9453]
[1673887304893,17.0,23.107,23.079,119.9453]
[1673887305112,20.0,23.106,23.079,119.9453]
[1673887305539,32.48,23.105,23.079,119.9453]
[1673887305858,20.0,23.104,23.079,119.9453]
[1673887306057,20.0,23.104,23.08,32.52]
[1673887307512,20.0,23.104,23.081,17.0]
[1673887308254,20.0,23.104,23.082,32.51]
[1673887308589,20.0,23.104,23.083,17.0]
[1673887309091,20.0,23.104,23.081,17.0]
[1673887309948,20.0,23.104,23.08,17.0]
[1673887310800,20.0,23.104,23.08,49.52]
[1673887311110,20.0,23.104,23.08,17.0]
[1673887311632,20.0,23.104,23.081,32.51]
[1673887311844,20.0,23.104,23.082,17.0]
[1673887312363,20.0,23.104,23.08,17.0]
[1673887312573,20.0,23.104,23.08,49.52]
[1673887315187,20.0,23.104,23.079,119.9453]
[1673887315399,20.0,23.102,23.079,119.9453]
[1673887315612,20.0,23.1,23.079,119.9453]
[1673887316337,20.0,23.1,23.08,17.0]
[1673887316990,20.0,23.1,23.079,119.9453]
[1673887317204,17.0,23.099,23.079,119.9453]
[1673887317397,49.49,23.099,23.079,119.9453]
[1673887317610,20.0,23.098,23.079,119.9453]
[1673887318443,20.0,23.098,23.08,17.0]
[1673887320665,25.51,23.09,23.08,17.0]
[1673887321716,25.01,23.09,23.08,17.0]
[1673887322956,25.01,23.09,23.075,109.8087]
[1673887323170,25.61,23.08,23.067,32.53]
[1673887323388,0.03444255,23.08,23.068,15.55147774]
[1673887323604,0.03444255,23.08,23.069,20.0]
[1673887323948,0.03444255,23.08,23.069,68.08147774]
[1673887324243,0.03444255,23.08,23.065,6.85594359]
[1673887324446,0.03444255,23.08,23.066,20.0]
[1673887324636,0.03444255,23.08,23.066,52.54]
[1673887324850,0.03444255,23.08,23.068,20.0]
[1673887325059,0.03444255,23.08,23.069,17.0]
[1673887325279,0.03444255,23.08,23.069,49.53]
[1673887325482,0.03444255,23.08,23.07,20.0]
[1673887325711,32.5,23.093,23.071,17.0]
[1673887325900,20.0,23.106,23.072,20.0]
[1673887325901,25.61,23.09,23.072,20.0]
[1673887326111,25.61,23.09,23.073,23.76923072]
[1673887326436,25.61,23.09,23.074,20.0]
[1673887326650,25.61,23.09,23.074,68.07147774]
[1673887326853,25.61,23.09,23.076,20.0]
[1673887327191,25.61,23.09,23.077,32.55147774]
[1673887327389,25.61,23.09,23.077,65.07147774]
[1673887327710,25.61,23.09,23.079,7.06787874]
[1673887327918,25.61,23.09,23.08,20.0]
[1673887328124,25.75,23.1,23.08,69.52]
[1673887328322,25.75,23.1,23.081,9.04604888]
[1673887328526,25.75,23.1,23.084,7.74133371]
[1673887328984,25.75,23.1,23.086,20.0]
[1673887329154,25.75,23.1,23.085,48.06147774]
[1673887329367,25.75,23.1,23.084,7.74133371]
[1673887329368,128.5,23.1,23.081,4.99911]
[1673887329578,25.61,23.09,23.078,15.55147774]
[1673887329787,25.61,23.09,23.075,32.52]
[1673887329997,25.61,23.09,23.078,32.52]
[1673887330211,25.61,23.09,23.076,32.52]
[1673887330647,25.61,23.09,23.077,20.0]
[1673887330839,25.61,23.09,23.076,32.52]
[1673887331048,25.61,23.09,23.077,35.55147774]
[1673887331493,25.61,23.09,23.078,32.52]
[1673887331807,25.61,23.09,23.079,35.55147774]
[1673887332227,25.61,23.09,23.08,17.0]
[1673887333058,25.61,23.09,23.078,17.0]
[1673887333261,25.61,23.09,23.075,55.20551141]
[1673887333262,25.61,23.09,23.076,17.0]
[1673887333475,25.61,23.09,23.081,20.0]
[1673887333699,25.75,23.1,23.082,22.56541565]
[1673887333912,25.75,23.1,23.083,7.70644747]
[1673887334228,25.75,23.1,23.085,7.68500591]
[1673887334422,25.61,23.11,23.087,20.0]
[1673887334634,25.61,23.11,23.089,4.67188662]
[1673887334842,25.61,23.11,23.09,17.0]
[1673887335048,25.44,23.12,23.091,10.07239414]
[1673887335263,25.44,23.12,23.093,27.24591284]
[1673887335466,25.44,23.12,23.094,4.9963]
[1673887335683,25.44,23.12,23.095,17.0]
[1673887335898,25.44,23.12,23.097,20.0]
[1673887336111,25.44,23.12,23.098,22.82545791]
[1673887336431,25.44,23.12,23.1,7.83423781]
[1673887336638,25.44,23.12,23.102,20.0]
[1673887336849,25.44,23.12,23.103,17.0]
[1673887337045,25.44,23.12,23.104,20.0]
[1673887337251,25.44,23.12,23.105,17.0]
[1673887337482,25.44,23.12,23.106,20.0]
[1673887337698,25.44,23.12,23.107,17.0]
[1673887340834,25.44,23.12,23.108,20.0]
[1673887341044,25.44,23.12,23.109,17.0]
[1673887341889,25.44,23.12,23.105,15.55147774]
[1673887343346,25.44,23.12,23.106,12.940424]
[1673887343787,25.44,23.12,23.107,15.55147774]
[1673887344010,25.44,23.12,23.108,20.0]
[1673887344431,25.44,23.12,23.108,35.55147774]
[1673887345483,25.44,23.12,23.109,17.0]
[1673887346427,25.44,23.12,23.11,20.0]
[1673887346629,25.44,23.12,23.111,17.0]
[1673887346842,25.44,23.12,23.111,32.55147774]
[1673887348102,25.44,23.12,23.099,20.0]
[1673887348322,25.55,23.11,23.099,20.0]
[1673887348533,25.55,23.11,23.1,20.23528941]
[1673887348748,25.55,23.11,23.101,15.55147774]
[1673887351896,25.55,23.11,23.102,17.0]
[1673887352111,25.44,23.12,23.104,4.2173494]
[1673887352305,25.44,23.12,23.105,17.0]
[1673887352508,25.44,23.12,23.105,32.55147774]
[1673887353056,25.44,23.12,23.108,7.50169797]
[1673887353246,25.44,23.12,23.109,17.0]
[1673887353455,25.44,23.12,23.109,32.55147774]
[1673887353888,25.44,23.12,23.11,15.55147774]
[1673887354119,25.44,23.12,23.109,17.0]
[1673887354120,25.44,23.12,23.111,17.0]
[1673887354438,25.44,23.12,23.109,17.0]
[1673887354832,25.44,23.12,23.109,32.55147774]
[1673887355274,25.44,23.12,23.109,17.0]
[1673887355697,25.44,23.12,23.11,20.0]
[1673887355890,25.44,23.12,23.111,17.0]
[1673887356319,25.44,23.12,23.111,32.55147774]
[1673887356837,25.51,23.13,23.113,20.0]
[1673887357038,25.51,23.13,23.114,17.0]
[1673887357250,25.51,23.13,23.114,37.23037863]
[1673887357902,25.51,23.13,23.114,32.55147774]
[1673887359247,20.0,23.129,23.114,17.0]
[1673887359462,25.55,23.12,23.114,17.0]
[1673887360206,25.05,23.12,23.114,17.0]
[1673887362840,25.05,23.12,23.114,31.55147774]
[1673887363770,25.61,23.13,23.115,6.28316467]
[1673887363998,25.61,23.13,23.116,20.0]
[1673887364211,25.61,23.13,23.116,35.55147774]
[1673887364430,25.61,23.13,23.117,15.55147774]
[1673887365259,25.61,23.13,23.118,17.0]
[1673887365665,25.61,23.13,23.112,41.52636648]
[1673887365977,20.0,23.133,23.11,6.05133082]
[1673887365978,25.61,23.12,23.11,21.60280856]
[1673887366815,25.61,23.12,23.11,15.55147774]
[1673887367346,25.61,23.12,23.11,23.40297426]
[1673887368290,25.61,23.12,23.111,15.55147774]
[1673887368512,25.61,23.12,23.111,32.55147774]
[1673887368840,25.61,23.12,23.112,15.55147774]
[1673887369041,25.61,23.12,23.113,17.0]
[1673887369245,25.61,23.12,23.112,15.55147774]
[1673887369664,25.61,23.12,23.103,7.16591854]
[1673887370190,25.61,23.12,23.11,15.55147774]
[1673887370822,25.61,23.12,23.111,17.0]
[1673887371362,25.61,23.12,23.112,15.55147774]
[1673887371558,25.61,23.12,23.113,17.0]
[1673887373546,25.61,23.12,23.103,7.16591854]
[1673887373758,25.61,23.12,23.109,135.06427774]
[1673887374802,25.61,23.12,23.11,17.0]
[1673887375645,25.61,23.12,23.109,135.06427774]
[1673887376065,25.61,23.12,23.103,7.16591854]
[1673887376276,25.61,23.12,23.105,15.55147774]
[1673887376710,25.61,23.12,23.095,5.62083659]
[1673887376711,128.36,23.12,23.095,5.62083659]
[1673887376915,25.55,23.11,23.094,15.55147774]
[1673887377332,25.55,23.11,23.096,15.55147774]
[1673887377770,25.55,23.11,23.098,7.95816943]
[1673887377973,25.55,23.11,23.099,17.0]
[1673887378193,25.55,23.11,23.099,32.55147774]
[1673887378604,25.55,23.11,23.1,15.55147774]
[1673887378802,25.55,23.11,23.101,17.0]
[1673887379464,25.55,23.11,23.103,17.0]
[1673887381664,25.55,23.11,23.104,15.55147774]
[1673887381876,25.55,23.11,23.105,17.0]
[1673887382083,20.0,23.118,23.105,17.0]
[1673887382489,20.0,23.118,23.104,15.55147774]
[1673887382714,25.61,23.11,23.104,15.55147774]
[1673887382904,25.61,23.11,23.094,7.05343179]
[1673887383118,25.61,23.11,23.095,15.55147774]
[1673887383343,25.61,23.1,23.095,15.55147774]
[1673887383562,25.61,23.1,23.09,7.54217993]
[1673887383953,25.61,23.1,23.088,116.4449]
[1673887384183,25.61,23.1,23.086,40.0721764]
[1673887384604,25.61,23.1,23.086,7.5721764]
[1673887384797,25.61,23.1,23.086,23.12365414]
[1673887385217,25.61,23.1,23.086,15.55147774]
[1673887385443,127.68,23.1,23.076,32.52]
[1673887385640,25.61,23.09,23.075,112.0614]
[1673887385851,25.55,23.08,23.075,112.0614]
[1673887386067,0.07211169,23.08,23.076,15.55147774]
[1673887386282,25.61,23.09,23.076,15.55147774]
[1673887389025,25.61,23.09,23.077,17.0]
[1673887389214,25.55,23.09,23.077,17.0]
[1673887389437,25.55,23.09,23.072,7.04592332]
[1673887389753,25.61,23.08,23.073,15.55147774]
[1673887390789,20.0,23.094,23.09,223.39]
[1673887390995,32.49,23.095,23.09,223.39]
[1673887391444,32.49,23.096,23.09,223.39]
[1673887392049,32.49,23.098,23.09,223.39]
[1673887392274,127.82,23.1,23.09,223.39]
[1673887392275,160.3,23.1,23.091,17.0]
[1673887392480,127.82,23.1,23.091,17.0]
[1673887392701,20.0,23.099,23.09,223.39]
[1673887392890,127.82,23.1,23.091,17.0]
[1673887393317,20.0,23.099,23.091,17.0]
[1673887394903,127.82,23.1,23.091,17.0]
[1673887396379,25.38,23.1,23.091,17.0]
[1673887396569,20.0,23.109,23.091,32.55147774]
[1673887396775,25.58,23.1,23.091,32.55147774]
[1673887397748,25.58,23.1,23.092,15.55147774]
[1673887397959,25.58,23.1,23.093,17.0]
[1673887398456,127.82,23.1,23.091,17.0]
[1673887400054,128.04,23.1,23.091,17.0]
[1673887400664,20.0,23.099,23.091,17.0]
[1673887401203,20.0,23.099,23.09,216.5386]
[1673887402556,128.04,23.1,23.09,216.5386]
[1673887402996,128.04,23.1,23.09,232.09007774]
[1673887403398,128.04,23.1,23.091,17.0]
[1673887404137,25.72,23.1,23.091,17.0]
[1673887405099,25.72,23.1,23.091,32.55147774]
[1673887405712,25.72,23.1,23.091,17.0]
[1673887411615,16.98,23.1,23.091,17.0]
[1673887412954,85.18,23.1,23.091,17.0]
[1673887413163,17.16,23.1,23.091,32.55147774]
[1673887413585,17.16,23.1,23.092,20.0]
[1673887413796,17.16,23.1,23.093,16.0]
[1673887414008,17.16,23.1,23.093,31.55147774]
[1673887414221,17.16,23.1,23.093,16.0]
[1673887414768,17.16,23.1,23.094,15.55147774]
[1673887415166,17.16,23.1,23.093,16.0]
[1673887415486,17.16,23.1,23.091,15.55147774]
[1673887416318,85.36,23.1,23.09,216.5386]
[1673887416533,20.0,23.099,23.09,216.5386]
[1673887418215,52.49,23.099,23.09,216.5386]
[1673887420431,20.0,23.099,23.09,216.5386]
[1673887421290,52.49,23.099,23.09,216.5386]
[1673887421897,17.0,23.098,23.09,47.2886]
[1673887422127,17.0,23.098,23.065,139.1467]
[1673887422450,16.9,23.08,23.067,20.0]
[1673887422849,16.9,23.08,23.069,20.0]
[1673887423503,16.9,23.08,23.07,15.55147774]
[1673887424434,16.9,23.08,23.072,20.0]
[1673887424638,16.9,23.08,23.073,17.0]
[1673887424855,16.9,23.08,23.073,32.55147774]
[1673887425065,16.9,23.08,23.074,15.55147774]
[1673887425272,16.9,23.08,23.069,20.0]
[1673887425592,16.9,23.08,23.07,15.55147774]
[1673887426654,16.9,23.08,23.071,17.0]
[1673887427048,16.9,23.08,23.072,15.55147774]
[1673887427261,16.9,23.08,23.073,17.0]
[1673887427597,16.9,23.08,23.073,32.55147774]
[1673887429482,17.05,23.08,23.074,20.0]
[1673887429696,17.05,23.08,23.073,32.55147774]
[1673887429697,17.05,23.08,23.075,17.0]
[1673887430005,17.05,23.08,23.073,32.55147774]
[1673887431161,0.15884461,23.08,23.074,20.0]
[1673887431377,20.0,23.094,23.076,20.0]
[1673887431598,16.9,23.09,23.077,17.0]
[1673887431790,16.9,23.09,23.077,32.55147774]
[1673887433482,16.9,23.09,23.078,35.55147774]
[1673887433690,16.9,23.09,23.079,17.0]
[1673887433908,16.9,23.09,23.079,32.55147774]
[1673887434331,16.9,23.09,23.08,35.55147774]
[1673887434550,16.9,23.09,23.081,17.0]
[1673887434735,16.9,23.09,23.081,32.55147774]
[1673887436329,16.9,23.09,23.081,17.0]
[1673887436649,16.9,23.09,23.081,32.55147774]
[1673887436954,16.9,23.09,23.082,20.0]
[1673887437148,16.9,23.09,23.083,17.0]
[1673887440633,16.9,23.09,23.078,15.55147774]
[1673887441364,16.9,23.09,23.08,5.32160765]
[1673887441697,16.9,23.09,23.081,16.74006768]
[1673887442003,16.9,23.09,23.082,37.0]
[1673887442408,16.9,23.09,23.083,16.74006768]
[1673887442735,16.9,23.09,23.084,17.0]
[1673887442947,16.9,23.09,23.082,17.0]
[1673887443154,16.9,23.09,23.08,17.0]
[1673887443363,16.9,23.09,23.081,20.0]
[1673887443556,16.9,23.09,23.082,17.0]
[1673887445664,17.16,23.1,23.082,33.74006768]
[1673887445998,17.16,23.1,23.084,7.19021935]
[1673887446189,17.16,23.1,23.087,4.50730445]
[1673887446402,17.16,23.1,23.088,17.0]
[1673887446611,17.16,23.1,23.088,33.74006768]
[1673887449248,16.98,23.11,23.096,17.0]
[1673887452840,16.98,23.11,23.094,17.0]
[1673887453028,17.01,23.1,23.094,17.0]
[1673887454192,17.01,23.1,23.094,33.74006768]
[1673887454805,17.01,23.1,23.094,16.74006768]
[1673887455035,17.01,23.1,23.083,6.5299899]
[1673887455036,85.21,23.1,23.083,6.5299899]
[1673887455351,85.21,23.1,23.081,52.51]
[1673887455352,17.01,23.09,23.081,32.51]
[1673887455545,17.01,23.09,23.08,4.9688752]
[1673887456383,17.01,23.09,23.081,17.0]
[1673887459212,16.89,23.1,23.082,36.74006768]
[1673887459424,16.9,23.1,23.085,20.0]
[1673887459654,16.9,23.1,23.087,4.65344811]
[1673887459854,16.9,23.1,23.088,17.0]
[1673887460072,16.9,23.1,23.088,33.74006768]
[1673887460276,16.9,23.1,23.088,17.0]
[1673887460518,16.9,23.1,23.089,16.74006768]
[1673887460729,16.9,23.1,23.09,17.0]
[1673887461252,85.11,23.1,23.091,16.74006768]
[1673887461453,85.11,23.1,23.083,117.5483]
[1673887461454,20.0,23.099,23.083,117.5483]
[1673887461683,17.05,23.09,23.077,7.51081114]
[1673887462199,17.05,23.09,23.078,16.74006768]
[1673887462393,17.05,23.09,23.079,17.0]
[1673887462814,17.05,23.09,23.08,16.74006768]
[1673887463668,49.38,23.1,23.08,16.74006768]
[1673887463869,17.05,23.1,23.082,6.49077452]
[1673887464067,17.05,23.1,23.083,4.99868]
[1673887464277,17.05,23.1,23.084,23.33720678]
[1673887464623,17.05,23.1,23.086,4.14842944]
[1673887464805,17.05,23.1,23.087,17.0]
[1673887465015,17.05,23.1,23.088,32.05217106]
[1673887465245,17.05,23.1,23.089,22.63091155]
[1673887465449,17.05,23.1,23.089,39.37097923]
[1673887465770,17.05,23.1,23.091,6.58386735]
[1673887465985,17.05,23.1,23.092,17.0]
[1673887466178,17.05,23.1,23.092,33.74006768]
[1673887466384,34.14,23.1,23.088,4.9976]
[1673887466595,85.18,23.1,23.077,5.63565047]
[1673887466820,16.91,23.09,23.081,16.74006768]
[1673887467749,16.91,23.09,23.077,5.63565047]
[1673887467962,16.91,23.09,23.078,17.92075596]
[1673887469023,16.91,23.09,23.072,32.52]
[1673887469223,16.91,23.08,23.075,136.66065596]
[1673887469431,16.91,23.08,23.075,17.92075596]
[1673887469654,16.91,23.08,23.068,32.53]
[1673887469858,16.91,23.08,23.072,17.92075596]
[1673887471036,25.38,23.08,23.072,17.92075596]
[1673887471220,25.38,23.08,23.069,26.63756115]
[1673887471660,25.38,23.08,23.07,17.92075596]
[1673887472904,25.38,23.08,23.071,17.0]
[1673887473114,25.38,23.08,23.072,20.0]
[1673887473330,25.38,23.08,23.073,17.0]
[1673887474717,25.38,23.08,23.074,17.92075596]
[1673887474912,25.38,23.08,23.075,17.0]
[1673887476582,25.38,23.08,23.069,20.0]
[1673887477222,25.38,23.08,23.07,17.92075596]
[1673887479864,25.38,23.08,23.071,17.0]
[1673887480070,25.38,23.08,23.072,20.0]
[1673887480389,118.6751,23.088,23.081,25.09570432]
[1673887480608,25.51,23.09,23.082,17.0]
[1673887480918,25.51,23.09,23.083,20.0]
[1673887481103,25.51,23.09,23.083,25.55216456]
[1673887481313,25.51,23.09,23.084,17.0]
[1673887481543,110.9264,23.099,23.084,34.92075596]
[1673887481739,25.45,23.1,23.086,20.0]
[1673887481938,25.45,23.1,23.087,17.0]
[1673887482377,45.45,23.1,23.087,17.0]
[1673887482793,25.45,23.1,23.087,17.0]
[1673887484380,128.24,23.1,23.087,17.0]
[1673887484594,128.24,23.1,23.086,17.0]
[1673887484996,20.0,23.099,23.086,17.0]
[1673887485633,128.24,23.1,23.086,17.0]
[1673887485853,128.24,23.1,23.087,20.0]
[1673887486045,128.24,23.1,23.088,17.0]
[1673887486888,128.24,23.1,23.086,17.0]
[1673887487101,25.81,23.1,23.086,17.0]
[1673887487321,25.81,23.1,23.087,20.0]
[1673887487532,25.81,23.1,23.088,17.0]
[1673887487935,25.81,23.1,23.075,118.18610271]
[1673887487936,32.49,23.099,23.075,118.18610271]
[1673887488158,25.51,23.09,23.079,17.92075596]
[1673887488687,25.51,23.09,23.069,32.53]
[1673887488886,25.51,23.09,23.068,38.19337563]
[1673887489099,32.5,23.089,23.068,5.66337563]